fUST/lending_fUST_20250505
["ID","MTS","AMOUNT","RATE_DAILY","PERIOD"]
[359895759,1746406242314,-400.0,0.00036164,14]
[359895761,1746406242323,-400.0,0.00036164,14]
[359895763,1746406242333,-400.0,0.00036164,14]
[359895765,1746406242342,-400.0,0.00036164,14]
[359895767,1746406242352,-341.12,0.00036164,14]
[359895769,1746406242362,-400.0,0.00036164,14]
[359895771,1746406242371,-280.25,0.00036164,14]
[359895773,1746406242380,-534.05,0.00036164,14]
[359895775,1746406242389,-687.53,0.00036164,14]
[359895777,1746406242399,-200.0,0.00036164,14]
[359895779,1746406242412,-205.89412048,0.00036164,14]
[359895781,1746406242422,-400.0,0.00036164,14]
[359895783,1746406242432,-400.0,0.00036164,14]
[359895785,1746406242441,-400.0,0.00036164,14]
[359895786,1746406242451,-200.0,0.00036164,14]
[359895788,1746406242460,-210.49084497,0.00036164,14]
[359895791,1746406242470,-400.0,0.00036164,14]
[359895793,1746406242480,-163.42048272,0.00036164,14]
[359895795,1746406242489,-544.59332693,0.00036164,14]
[359895797,1746406242498,-400.0,0.00036164,14]
[359895799,1746406242508,-446.38,0.00036164,14]
[359895800,1746406242518,-400.0,0.00036164,14]
[359895802,1746406242527,-400.0,0.00036164,14]
[359895804,1746406242537,-400.0,0.00036164,14]
[359895806,1746406242547,-400.0,0.00036164,14]
[359895808,1746406242556,-428.27,0.00036164,14]
[359895810,1746406242566,-400.0,0.00036164,14]
[359895812,1746406242575,-400.0,0.00036164,14]
[359895814,1746406242584,-400.0,0.00036164,14]
[359895816,1746406242594,-400.0,0.00036164,14]
[359895818,1746406242603,-1883.66,0.00036164,14]
[359895820,1746406242612,-400.0,0.00036164,14]
[359895822,1746406242621,-196.2,0.00036164,14]
[359895824,1746406242630,-400.0,0.00036164,14]
[359895826,1746406242640,-553.05,0.00036164,14]
[359895828,1746406242649,-400.0,0.00036164,14]
[359895830,1746406242658,-400.0,0.00036164,14]
[359895832,1746406242667,-400.0,0.00036164,14]
[359895834,1746406242677,-400.0,0.00036164,14]
[359895836,1746406242685,-400.0,0.00036164,14]
[359895838,1746406242695,-400.0,0.00036164,14]
[359895840,1746406242705,-400.0,0.00036164,14]
[359895842,1746406242714,-415.87223292,0.00036164,14]
[359895844,1746406242724,-768.3,0.00036164,14]
[359895846,1746406242734,-400.0,0.00036164,14]
[359895849,1746406242744,-400.0,0.00036164,14]
[359895852,1746406242753,-400.0,0.00036164,14]
[359895854,1746406242763,-400.0,0.00036164,14]
[359895856,1746406242773,-560.86,0.00036164,14]
[359895858,1746406242783,-932.24,0.00036164,14]
[359895861,1746406242792,-400.0,0.00036164,14]
[359895863,1746406242802,-1028.46,0.00036164,14]
[359895865,1746406242812,-400.0,0.00036164,14]
[359895867,1746406242821,-407.76988597,0.00036164,14]
[359895869,1746406242831,-480.69,0.00036164,14]
[359895871,1746406242841,-400.0,0.00036164,14]
[359895873,1746406242851,-400.0,0.00036164,14]
[359895875,1746406242860,-1176.96,0.00036164,14]
[359895877,1746406242869,-400.0,0.00036164,14]
[359895879,1746406242879,-400.0,0.00036164,14]
[359895881,1746406242888,-401.04,0.00036164,14]
[359895897,1746406243032,-6002.64119138,0.00036164,14]
[359895913,1746406243179,186.0,0.00035,7]
[359895950,1746406243538,-27.78845128,0.00036164,14]
[359896156,1746406245657,-488.11,0.00035616,14]
[359896158,1746406245666,-400.0,0.00035616,14]
[359896160,1746406245676,-400.0,0.0003589,14]
[359896162,1746406245685,-524.89035734,0.00036164,14]
[359896164,1746406245695,-400.0,0.00036164,14]
[359896166,1746406245704,-1924.84,0.00036164,14]
[359896168,1746406245714,-400.0,0.00036164,14]
[359896170,1746406245723,-759.62,0.00036164,14]
[359896172,1746406245732,-400.0,0.00036164,14]
[359896174,1746406245742,-400.0,0.00036164,14]
[359896176,1746406245751,-468.68,0.00036164,14]
[359896178,1746406245760,-664.1,0.00036164,14]
[359896180,1746406245769,-358.73,0.00036164,14]
[359896182,1746406245778,-400.0,0.00036164,14]
[359896184,1746406245787,-1959.41,0.00036164,14]
[359896186,1746406245797,-400.0,0.00036164,14]
[359896188,1746406245806,-400.0,0.00036164,14]
[359896190,1746406245815,-539.59,0.00036164,14]
[359896192,1746406245825,-400.0,0.00036164,14]
[359896194,1746406245834,-561.24,0.00036164,14]
[359896196,1746406245844,-500.0,0.00036164,60]
[359896198,1746406245853,-500.0,0.00036173,5]
[359896200,1746406245862,-805.693101,0.00036201,2]
[359896202,1746406245872,-247.226323,0.00036203,2]
[359896204,1746406245881,-234.02238527,0.00036245,34]
[359896206,1746406245890,-469.25690069,0.00036318,2]
[359896209,1746406245899,-234.02238527,0.00036417,34]
[359896211,1746406245909,-16016.2561672,0.00036418,3]
[359896213,1746406245918,-16016.2561672,0.00036428,3]
[359896215,1746406245927,-400.0,0.00036438,14]
[359896217,1746406245937,-400.0,0.00036438,14]
[359896219,1746406245946,-400.0,0.00036438,14]
[359896221,1746406245956,-545.7,0.00036438,14]
[359896223,1746406245965,-400.0,0.00036438,14]
[359896225,1746406245976,-400.0,0.00036438,14]
[359896227,1746406245986,-400.0,0.00036438,14]
[359896229,1746406245995,-400.0,0.00036438,14]
[359896231,1746406246005,-400.0,0.00036438,14]
[359896233,1746406246014,-400.0,0.00036438,14]
[359896235,1746406246023,-400.0,0.00036438,14]
[359896237,1746406246033,-400.0,0.00036438,14]
[359896239,1746406246043,-400.0,0.00036438,14]
[359896241,1746406246052,-400.0,0.00036438,14]
[359896243,1746406246061,-400.0,0.00036438,14]
[359896245,1746406246070,-400.0,0.00036438,14]
[359896247,1746406246080,-400.0,0.00036438,14]
[359896249,1746406246092,-400.0,0.00036438,14]
[359896251,1746406246102,-400.0,0.00036438,14]
[359896253,1746406246111,-400.0,0.00036438,14]
[359896255,1746406246121,-400.0,0.00036438,14]
[359896257,1746406246130,-400.0,0.00036438,14]
[359896259,1746406246139,-400.0,0.00036438,14]
[359896261,1746406246149,-400.0,0.00036438,14]
[359896263,1746406246158,-400.0,0.00036438,14]
[359896265,1746406246168,-400.0,0.00036438,14]
[359896267,1746406246177,-400.0,0.00036438,14]
[359896269,1746406246187,-1000.0,0.00036438,14]
[359896271,1746406246196,-400.0,0.00036438,14]
[359896273,1746406246206,-400.0,0.00036438,14]
[359896275,1746406246216,-400.0,0.00036438,14]
[359896277,1746406246226,-400.0,0.00036438,14]
[359896279,1746406246235,-400.0,0.00036438,14]
[359896281,1746406246245,-400.0,0.00036438,14]
[359896283,1746406246254,-400.0,0.00036438,14]
[359896285,1746406246263,-475.74,0.00036438,14]
[359896287,1746406246273,-400.0,0.00036438,14]
[359896289,1746406246282,-400.0,0.00036438,14]
[359896291,1746406246291,-500.0,0.00036438,14]
[359896293,1746406246301,-400.0,0.00036438,14]
[359896295,1746406246311,-400.0,0.00036438,14]
[359896297,1746406246320,-400.0,0.00036438,14]
[359896299,1746406246330,-400.0,0.00036438,14]
[359896301,1746406246339,-400.0,0.00036438,14]
[359896303,1746406246348,-400.0,0.00036438,14]
[359896305,1746406246357,-400.0,0.00036438,14]
[359896307,1746406246367,-500.0,0.00036438,14]
[359896309,1746406246377,-400.0,0.00036438,14]
[359896311,1746406246386,-400.0,0.00036438,14]
[359896313,1746406246395,-400.0,0.00036438,14]
[359896315,1746406246408,-400.0,0.00036438,14]
[359896317,1746406246418,-400.0,0.00036438,14]
[359896319,1746406246427,-400.0,0.00036438,14]
[359896321,1746406246436,-400.0,0.00036438,14]
[359896323,1746406246447,-400.0,0.00036438,14]
[359896325,1746406246456,-400.0,0.00036438,14]
[359896327,1746406246466,-400.0,0.00036438,14]
[359896329,1746406246475,-276.9,0.00036438,14]
[359896331,1746406246483,-534.05,0.00036438,14]
[359896332,1746406246494,-687.53,0.00036438,14]
[359896333,1746406246503,-400.0,0.00036438,14]
[359896334,1746406246512,-400.0,0.00036438,14]
[359896335,1746406246521,-400.0,0.00036438,14]
[359896336,1746406246530,-400.0,0.00036438,14]
[359896337,1746406246539,-400.0,0.00036438,14]
[359896338,1746406246548,-446.38,0.00036438,14]
[359896339,1746406246557,-400.0,0.00036438,14]
[359896340,1746406246566,-400.0,0.00036438,14]
[359896341,1746406246575,-400.0,0.00036438,14]
[359896342,1746406246584,-428.27,0.00036438,14]
[359896343,1746406246593,-400.0,0.00036438,14]
[359896344,1746406246602,-400.0,0.00036438,14]
[359896345,1746406246611,-413.41963762,0.00036438,14]
[359896347,1746406246620,-400.0,0.00036438,14]
[359896349,1746406246630,-1883.66,0.00036438,14]
[359896351,1746406246639,-400.0,0.00036438,14]
[359896353,1746406246648,-400.0,0.00036438,14]
[359896355,1746406246658,-553.05,0.00036438,14]
[359896357,1746406246667,-400.0,0.00036438,14]
[359896359,1746406246677,-400.0,0.00036438,14]
[359896361,1746406246686,-400.0,0.00036438,14]
[359896363,1746406246695,-400.0,0.00036438,14]
[359896365,1746406246705,-400.0,0.00036438,14]
[359896367,1746406246714,-400.0,0.00036438,14]
[359896369,1746406246723,-400.0,0.00036438,14]
[359896371,1746406246732,-768.3,0.00036438,14]
[359896373,1746406246742,-400.0,0.00036438,14]
[359896375,1746406246752,-400.0,0.00036438,14]
[359896377,1746406246762,-400.0,0.00036438,14]
[359896379,1746406246771,-400.0,0.00036438,14]
[359896381,1746406246780,-560.86,0.00036438,14]
[359896383,1746406246789,-932.24,0.00036438,14]
[359896385,1746406246799,-400.0,0.00036438,14]
[359896387,1746406246808,-1028.46,0.00036438,14]
[359896389,1746406246818,-400.0,0.00036438,14]
[359896391,1746406246828,-480.69,0.00036438,14]
[359896393,1746406246837,-400.0,0.00036438,14]
[359896395,1746406246846,-400.0,0.00036438,14]
[359896397,1746406246855,-1176.96,0.00036438,14]
[359896399,1746406246865,-400.0,0.00036438,14]
[359896401,1746406246874,-400.0,0.00036438,14]
[359896403,1746406246883,-401.04,0.00036438,14]
[359896404,1746406246893,-6555.32,0.00036438,14]
[359896406,1746406246902,-400.0,0.00036438,14]
[359896408,1746406246910,-1924.84,0.00036438,14]
[359896409,1746406246919,-400.0,0.00036438,14]
[359896411,1746406246929,-759.62,0.00036438,14]
[359896413,1746406246937,-400.0,0.00036438,14]
[359896415,1746406246947,-400.0,0.00036438,14]
[359896417,1746406246956,-468.68,0.00036438,14]
[359896419,1746406246965,-664.1,0.00036438,14]
[359896421,1746406246974,-400.0,0.00036438,14]
[359896423,1746406246983,-1959.41,0.00036438,14]
[359896425,1746406246993,-400.0,0.00036438,14]
[359896427,1746406247002,-396.27,0.00036438,14]
[359896429,1746406247012,-400.0,0.00036438,14]
[359896431,1746406247021,-561.24,0.00036438,14]
[359896433,1746406247030,-500.0,0.00036473,5]
[359896435,1746406247039,-234.02238527,0.0003659,35]
[359896437,1746406247049,-805.693101,0.00036612,2]
[359896439,1746406247058,-16016.2561672,0.00036692,3]
[359896441,1746406247067,-16016.2561672,0.00036702,3]
[359896443,1746406247077,-298.52,0.00036712,14]
[359896445,1746406247087,-400.0,0.00036712,14]
[359896447,1746406247096,-400.0,0.00036712,14]
[359896449,1746406247105,-545.7,0.00036712,14]
[359896451,1746406247115,-400.0,0.00036712,14]
[359896453,1746406247124,-400.0,0.00036712,14]
[359896455,1746406247133,-400.0,0.00036712,14]
[359896457,1746406247143,-400.0,0.00036712,14]
[359896459,1746406247152,-400.0,0.00036712,14]
[359896461,1746406247161,-400.0,0.00036712,14]
[359896463,1746406247170,-400.0,0.00036712,14]
[359896464,1746406247180,-400.0,0.00036712,14]
[359896466,1746406247190,-400.0,0.00036712,14]
[359896468,1746406247200,-400.0,0.00036712,14]
[359896470,1746406247209,-400.0,0.00036712,14]
[359896472,1746406247219,-400.0,0.00036712,14]
[359896474,1746406247228,-400.0,0.00036712,14]
[359896476,1746406247238,-400.0,0.00036712,14]
[359896479,1746406247251,-400.0,0.00036712,14]
[359896480,1746406247262,-400.0,0.00036712,14]
[359896482,1746406247273,-400.0,0.00036712,14]
[359896484,1746406247282,-400.0,0.00036712,14]
[359896486,1746406247293,-400.0,0.00036712,14]
[359896488,1746406247303,-400.0,0.00036712,14]
[359896490,1746406247314,-400.0,0.00036712,14]
[359896492,1746406247324,-1000.0,0.00036712,14]
[359896494,1746406247334,-400.0,0.00036712,14]
[359896496,1746406247343,-400.0,0.00036712,14]
[359896498,1746406247353,-400.0,0.00036712,14]
[359896500,1746406247363,-400.0,0.00036712,14]
[359896502,1746406247373,-400.0,0.00036712,14]
[359896504,1746406247383,-400.0,0.00036712,14]
[359896506,1746406247393,-400.0,0.00036712,14]
[359896508,1746406247404,-475.74,0.00036712,14]
[359896510,1746406247415,-400.0,0.00036712,14]
[359896512,1746406247425,-400.0,0.00036712,14]
[359896514,1746406247434,-400.0,0.00036712,14]
[359896516,1746406247445,-400.0,0.00036712,14]
[359896518,1746406247456,-400.0,0.00036712,14]
[359896520,1746406247465,-400.0,0.00036712,14]
[359896522,1746406247474,-400.0,0.00036712,14]
[359896524,1746406247484,-400.0,0.00036712,14]
[359896526,1746406247499,-158.6,0.00036712,14]
[359896528,1746406247508,-500.0,0.00036712,14]
[359896530,1746406247518,-400.0,0.00036712,14]
[359896532,1746406247527,-400.0,0.00036712,14]
[359896534,1746406247536,-400.0,0.00036712,14]
[359896536,1746406247545,-400.0,0.00036712,14]
[359896538,1746406247555,-400.0,0.00036712,14]
[359896540,1746406247565,-398.63,0.00036712,14]
[359896542,1746406247575,-296.6617323,0.00036712,14]
[359896544,1746406247585,-418.31,0.00036712,14]
[359896546,1746406247594,-400.0,0.00036712,14]
[359896548,1746406247605,-400.0,0.00036712,14]
[359896550,1746406247614,-534.05,0.00036712,14]
[359896552,1746406247624,-38.52828642,0.00036712,14]
[359896764,1746406249846,-649.00171358,0.00036712,14]
[359896766,1746406249857,-400.0,0.00036712,14]
[359896768,1746406249866,-261.98424676,0.00036712,14]
[359896770,1746406249875,-400.0,0.00036712,14]
[359896772,1746406249885,-400.0,0.00036712,14]
[359896774,1746406249894,-400.0,0.00036712,14]
[359896776,1746406249904,-446.38,0.00036712,14]
[359896778,1746406249913,-400.0,0.00036712,14]
[359896780,1746406249923,-400.0,0.00036712,14]
[359896782,1746406249932,-400.0,0.00036712,14]
[359896784,1746406249941,-428.27,0.00036712,14]
[359896786,1746406249950,-400.0,0.00036712,14]
[359896788,1746406249960,-400.0,0.00036712,14]
[359896790,1746406249969,-462.92,0.00036712,14]
[359896792,1746406249979,-1883.66,0.00036712,14]
[359896794,1746406249989,-400.0,0.00036712,14]
[359896796,1746406249999,-400.0,0.00036712,14]
[359896798,1746406250010,-553.05,0.00036712,14]
[359896800,1746406250020,-400.0,0.00036712,14]
[359896802,1746406250029,-400.0,0.00036712,14]
[359896804,1746406250038,-400.0,0.00036712,14]
[359896806,1746406250048,-400.0,0.00036712,14]
[359896808,1746406250058,-400.0,0.00036712,14]
[359896810,1746406250068,-400.0,0.00036712,14]
[359896812,1746406250077,-400.0,0.00036712,14]
[359896814,1746406250087,-768.3,0.00036712,14]
[359896816,1746406250097,-400.0,0.00036712,14]
[359896818,1746406250107,-277.7000512,0.00036712,14]
[359896820,1746406250117,-400.0,0.00036712,14]
[359896822,1746406250127,-400.0,0.00036712,14]
[359896824,1746406250136,-560.86,0.00036712,14]
[359896826,1746406250146,-932.24,0.00036712,14]
[359896828,1746406250156,-400.0,0.00036712,14]
[359896830,1746406250165,-778.90639266,0.00036712,14]
[359896833,1746406250177,-249.55360734,0.00036712,14]
[359896835,1746406250187,-400.0,0.00036712,14]
[359896836,1746406250196,-480.69,0.00036712,14]
[359896839,1746406250209,-400.0,0.00036712,14]
[359896840,1746406250219,-400.0,0.00036712,14]
[359896843,1746406250229,-1176.96,0.00036712,14]
[359896845,1746406250239,-400.0,0.00036712,14]
[359896847,1746406250250,-400.0,0.00036712,14]
[359896849,1746406250259,-401.04,0.00036712,14]
[359896851,1746406250269,-6555.32,0.00036712,14]
[359896853,1746406250279,-400.0,0.00036712,14]
[359896855,1746406250289,-1924.84,0.00036712,14]
[359896857,1746406250299,-400.0,0.00036712,14]
[359896859,1746406250309,-759.62,0.00036712,14]
[359896861,1746406250319,-400.0,0.00036712,14]
[359896863,1746406250329,-400.0,0.00036712,14]
[359896865,1746406250338,-468.68,0.00036712,14]
[359896867,1746406250348,-664.1,0.00036712,14]
[359896869,1746406250357,-400.0,0.00036712,14]
[359896871,1746406250367,-1959.41,0.00036712,14]
[359896873,1746406250377,-400.0,0.00036712,14]
[359896875,1746406250387,-172.16722217,0.00036712,14]
[359896877,1746406250396,-561.24,0.00036712,14]
[359896879,1746406250407,-500.0,0.00036735,5]
[359896881,1746406250419,-500.0,0.00036758,2]
[359896883,1746406250429,-234.02238527,0.00036762,35]
[359896885,1746406250438,-544.33964937,0.00036773,5]
[359896887,1746406250448,-501.41990258,0.00036773,5]
[359896889,1746406250459,-500.0,0.00036773,5]
[359896891,1746406250468,-500.0,0.00036773,5]
[359896893,1746406250479,-500.0,0.00036773,5]
[359896895,1746406250489,-500.0,0.00036773,5]
[359896897,1746406250500,-500.0,0.00036773,5]
[359896900,1746406250510,-500.0,0.00036773,5]
[359896902,1746406250520,-500.0,0.00036773,5]
[359896904,1746406250530,-597.76670569,0.00036773,5]
[359896906,1746406250539,-500.0,0.00036773,5]
[359896908,1746406250549,-500.0,0.00036773,5]
[359896910,1746406250558,-500.0,0.00036773,5]
[359896912,1746406250568,-500.0,0.00036773,5]
[359896914,1746406250577,-500.0,0.00036773,5]
[359896916,1746406250586,-604.04791288,0.00036773,5]
[359896918,1746406250596,-247.226323,0.00036889,2]
[359896920,1746406250605,-234.02238527,0.00036934,35]
[359896922,1746406250614,-160.0,0.00036943,2]
[359896924,1746406250624,-16016.2561672,0.00036976,3]
[359896926,1746406250633,-400.0,0.00036986,14]
[359896927,1746406250642,-400.0,0.00036986,14]
[359896930,1746406250652,-545.7,0.00036986,14]
[359896932,1746406250661,-400.0,0.00036986,14]
[359896934,1746406250670,-400.0,0.00036986,14]
[359896936,1746406250679,-400.0,0.00036986,14]
[359896938,1746406250689,-400.0,0.00036986,14]
[359896940,1746406250699,-400.0,0.00036986,14]
[359896942,1746406250708,-400.0,0.00036986,14]
[359896944,1746406250717,-400.0,0.00036986,14]
[359896946,1746406250726,-400.0,0.00036986,14]
[359896948,1746406250735,-400.0,0.00036986,14]
[359896949,1746406250744,-400.0,0.00036986,14]
[359896951,1746406250753,-400.0,0.00036986,14]
[359896953,1746406250762,-400.0,0.00036986,14]
[359896955,1746406250771,-400.0,0.00036986,14]
[359896957,1746406250780,-400.0,0.00036986,14]
[359896959,1746406250790,-1016.36833336,0.00036986,14]
[359896961,1746406250799,-400.0,0.00036986,14]
[359896963,1746406250809,-400.0,0.00036986,14]
[359896965,1746406250818,-400.0,0.00036986,14]
[359896967,1746406250827,-400.0,0.00036986,14]
[359896969,1746406250836,-400.0,0.00036986,14]
[359896971,1746406250846,-400.0,0.00036986,14]
[359896973,1746406250855,-400.0,0.00036986,14]
[359896975,1746406250864,-475.74,0.00036986,14]
[359896977,1746406250873,-400.0,0.00036986,14]
[359896979,1746406250882,-400.0,0.00036986,14]
[359896981,1746406250891,-400.0,0.00036986,14]
[359896983,1746406250901,-400.0,0.00036986,14]
[359896985,1746406250911,-400.0,0.00036986,14]
[359896987,1746406250921,-400.0,0.00036986,14]
[359896990,1746406250930,-400.0,0.00036986,14]
[359896992,1746406250940,-400.0,0.00036986,14]
[359896994,1746406250950,-500.0,0.00036986,14]
[359896996,1746406250959,-400.0,0.00036986,14]
[359896998,1746406250968,-400.0,0.00036986,14]
[359897000,1746406250976,-400.0,0.00036986,14]
[359897002,1746406250986,-400.0,0.00036986,14]
[359897004,1746406250996,-400.0,0.00036986,14]
[359897005,1746406251006,-414.44828302,0.00036986,14]
[359897007,1746406251016,-400.0,0.00036986,14]
[359897009,1746406251025,-534.05,0.00036986,14]
[359897012,1746406251035,-687.53,0.00036986,14]
[359897014,1746406251045,-400.0,0.00036986,14]
[359897016,1746406251054,-400.0,0.00036986,14]
[359897018,1746406251064,-400.0,0.00036986,14]
[359897020,1746406251073,-400.0,0.00036986,14]
[359897022,1746406251082,-446.38,0.00036986,14]
[359897024,1746406251092,-400.0,0.00036986,14]
[359897026,1746406251102,-400.0,0.00036986,14]
[359897028,1746406251112,-400.0,0.00036986,14]
[359897030,1746406251121,-428.27,0.00036986,14]
[359897032,1746406251131,-400.0,0.00036986,14]
[359897034,1746406251140,-400.0,0.00036986,14]
[359897036,1746406251149,-1883.66,0.00036986,14]
[359897038,1746406251159,-400.0,0.00036986,14]
[359897040,1746406251168,-400.0,0.00036986,14]
[359897042,1746406251177,-553.05,0.00036986,14]
[359897044,1746406251187,-409.58166953,0.00036986,14]
[359897046,1746406251197,-400.0,0.00036986,14]
[359897048,1746406251205,-273.94816731,0.00036986,14]
[359897050,1746406251215,-400.0,0.00036986,14]
[359897052,1746406251225,-400.0,0.00036986,14]
[359897054,1746406251234,-400.0,0.00036986,14]
[359897056,1746406251244,-400.0,0.00036986,14]
[359897058,1746406251254,-768.3,0.00036986,14]
[359897060,1746406251264,-400.0,0.00036986,14]
[359897062,1746406251273,-400.0,0.00036986,14]
[359897064,1746406251283,-400.0,0.00036986,14]
[359897066,1746406251292,-560.86,0.00036986,14]
[359897068,1746406251302,-932.24,0.00036986,14]
[359897070,1746406251312,-400.0,0.00036986,14]
[359897072,1746406251322,-1028.46,0.00036986,14]
[359897074,1746406251332,-400.0,0.00036986,14]
[359897076,1746406251341,-480.69,0.00036986,14]
[359897078,1746406251350,-400.0,0.00036986,14]
[359897080,1746406251360,-400.0,0.00036986,14]
[359897082,1746406251370,-1176.96,0.00036986,14]
[359897084,1746406251379,-400.0,0.00036986,14]
[359897086,1746406251390,-400.0,0.00036986,14]
[359897088,1746406251400,-401.04,0.00036986,14]
[359897090,1746406251414,-6555.32,0.00036986,14]
[359897092,1746406251423,-400.0,0.00036986,14]
[359897094,1746406251433,-1924.84,0.00036986,14]
[359897096,1746406251442,-400.0,0.00036986,14]
[359897098,1746406251453,-759.62,0.00036986,14]
[359897100,1746406251463,-400.0,0.00036986,14]
[359897102,1746406251472,-400.0,0.00036986,14]
[359897104,1746406251483,-468.68,0.00036986,14]
[359897106,1746406251493,-664.1,0.00036986,14]
[359897108,1746406251504,-400.0,0.00036986,14]
[359897110,1746406251514,-1959.41,0.00036986,14]
[359897112,1746406251525,-400.0,0.00036986,14]
[359897114,1746406251534,-561.24,0.00036986,14]
[359897116,1746406251545,-805.693101,0.00037023,2]
[359897119,1746406251555,-234.02238527,0.00037107,36]
[359897121,1746406251565,-1143.13464317,0.00037167,2]
[359897123,1746406251575,-16016.2561672,0.0003725,3]
[359897125,1746406251585,-400.0,0.0003726,14]
[359897127,1746406251594,-400.0,0.0003726,14]
[359897129,1746406251605,-545.7,0.0003726,14]
[359897131,1746406251614,-400.0,0.0003726,14]
[359897132,1746406251624,-400.0,0.0003726,14]
[359897133,1746406251633,-400.0,0.0003726,14]
[359897134,1746406251643,-169.8,0.0003726,14]
[359897135,1746406251652,-400.0,0.0003726,14]
[359897136,1746406251662,-188.32,0.0003726,14]
[359897137,1746406251672,-400.0,0.0003726,14]
[359897138,1746406251681,-400.0,0.0003726,14]
[359897139,1746406251690,-400.0,0.0003726,14]
[359897140,1746406251700,-400.0,0.0003726,14]
[359897141,1746406251710,-400.0,0.0003726,14]
[359897142,1746406251719,-400.0,0.0003726,14]
[359897143,1746406251729,-400.0,0.0003726,14]
[359897144,1746406251740,-400.0,0.0003726,14]
[359897146,1746406251751,-400.0,0.0003726,14]
[359897148,1746406251760,-400.0,0.0003726,14]
[359897150,1746406251770,-400.0,0.0003726,14]
[359897152,1746406251780,-212.50014495,0.0003726,14]
[359897154,1746406251789,-475.74,0.0003726,14]
[359897156,1746406251799,-400.0,0.0003726,14]
[359897158,1746406251809,-400.0,0.0003726,14]
[359897160,1746406251818,-400.0,0.0003726,14]
[359897162,1746406251828,-400.0,0.0003726,14]
[359897164,1746406251838,-400.0,0.0003726,14]
[359897166,1746406251847,-400.0,0.0003726,14]
[359897168,1746406251858,-400.0,0.0003726,14]
[359897170,1746406251870,-400.0,0.0003726,14]
[359897172,1746406251881,-509.91523077,0.0003726,14]
[359897174,1746406251892,-400.0,0.0003726,14]
[359897177,1746406251902,-527.01518823,0.0003726,14]
[359897179,1746406251914,-400.0,0.0003726,14]
[359897180,1746406251924,-400.0,0.0003726,14]
[359897182,1746406251934,-400.0,0.0003726,14]
[359897185,1746406251948,-400.0,0.0003726,14]
[359897187,1746406251957,-534.05,0.0003726,14]
[359897189,1746406251967,-687.53,0.0003726,14]
[359897191,1746406251976,-400.0,0.0003726,14]
[359897193,1746406251986,-424.58041572,0.0003726,14]
[359897195,1746406251995,-400.0,0.0003726,14]
[359897197,1746406252005,-446.38,0.0003726,14]
[359897199,1746406252016,-356.19972416,0.0003726,14]
[359897201,1746406252025,-400.0,0.0003726,14]
[359897203,1746406252035,-400.0,0.0003726,14]
[359897205,1746406252045,-400.0,0.0003726,14]
[359897207,1746406252055,-428.27,0.0003726,14]
[359897209,1746406252064,-400.0,0.0003726,14]
[359897211,1746406252073,-400.0,0.0003726,14]